[Event "*** SCC Grand Prix: Titled Tuesday Blitz"]
[Site "Chess.com"]
[Date "2020.09.29"]
[Round "5"]
[White "SabKaD4ddy"]
[Black "AlexOstrovskiy"]
[Result "0-1"]
[WhiteElo "2532"]
[BlackElo "2736"]
[TimeControl "180+1"]
[EndTime "10:55:03 PDT"]
[Termination "AlexOstrovskiy won by resignation"]

1. e4 {[%clk 0:02:54.1]} 1... c6 {[%clk 0:01:22.4]} 2. d4 {[%clk 0:02:52.7]}
2... d5 {[%clk 0:01:23.3]} 3. exd5 {[%clk 0:02:51.9]} 3... cxd5 {[%clk
0:01:24.2]} 4. c4 {[%clk 0:02:52.6]} 4... Nf6 {[%clk 0:01:23.5]} 5. Nc3 {[%clk
0:02:52.3]} 5... g6 {[%clk 0:01:19.4]} 6. Nf3 {[%clk 0:02:52.1]} 6... Bg7 {[%clk
0:01:19.4]} 7. Be2 {[%clk 0:02:52.4]} 7... O-O {[%clk 0:01:20.3]} 8. O-O {[%clk
0:02:52.2]} 8... Nc6 {[%clk 0:01:20.5]} 9. a3 {[%clk 0:02:52.1]} 9... dxc4
{[%clk 0:01:19.7]} 10. Bxc4 {[%clk 0:02:53]} 10... b6 {[%clk 0:01:20.3]} 11. Ba2
{[%clk 0:02:47.7]} 11... Bb7 {[%clk 0:01:19.2]} 12. Re1 {[%clk 0:02:48.1]} 12...
Rc8 {[%clk 0:01:19]} 13. Bg5 {[%clk 0:02:46.5]} 13... Na5 {[%clk 0:01:10.7]} 14.
Ne5 {[%clk 0:02:46.7]} 14... e6 {[%clk 0:01:08.7]} 15. Rc1 {[%clk 0:02:32.2]}
15... Re8 {[%clk 0:01:04.7]} 16. b4 {[%clk 0:02:02.8]} 16... Nc6 {[%clk
0:01:03.2]} 17. Nxc6 {[%clk 0:02:03.1]} 17... Bxc6 {[%clk 0:00:59.9]} 18. d5
{[%clk 0:02:03.7]} 18... exd5 {[%clk 0:00:44.3]} 19. Rxe8+ {[%clk 0:02:04.6]}
19... Qxe8 {[%clk 0:00:45.2]} 20. Bxf6 {[%clk 0:02:01.6]} 20... Bxf6 {[%clk
0:00:44.2]} 21. Nxd5 {[%clk 0:02:02]} 21... Bg7 {[%clk 0:00:44.6]} 22. h3 {[%clk
0:01:55.7]} 22... Kh8 {[%clk 0:00:37.6]} 23. Qg4 {[%clk 0:01:32.2]} 23... Rd8
{[%clk 0:00:34.9]} 24. Rd1 {[%clk 0:01:28.7]} 24... f5 {[%clk 0:00:29.7]} 25.
Qc4 {[%clk 0:01:27.1]} 25... Bxd5 {[%clk 0:00:20.8]} 26. Rxd5 {[%clk 0:01:27]}
26... Rxd5 {[%clk 0:00:21.1]} 27. Qxd5 {[%clk 0:01:27]} 27... Qe1+ {[%clk
0:00:21.7]} 28. Kh2 {[%clk 0:01:24.6]} 28... Be5+ {[%clk 0:00:22.6]} 29. g3
{[%clk 0:01:24.9]} 29... Qxf2+ {[%clk 0:00:19.1]} 30. Kh1 {[%clk 0:01:24.8]}
30... Qe1+ {[%clk 0:00:19.1]} 31. Kg2 {[%clk 0:01:24]} 31... Qxg3+ {[%clk
0:00:14.7]} 32. Kf1 {[%clk 0:01:24.5]} 32... Kg7 {[%clk 0:00:15.3]} 33. Qb3
{[%clk 0:01:10.1]} 33... Qxb3 {[%clk 0:00:11.8]} 34. Bxb3 {[%clk 0:01:11]} 34...
a5 {[%clk 0:00:08.7]} 35. bxa5 {[%clk 0:01:11]} 35... bxa5 {[%clk 0:00:09.6]}
36. a4 {[%clk 0:01:11.7]} 36... Kf6 {[%clk 0:00:08.7]} 37. Kg2 {[%clk
0:01:10.8]} 37... Kg5 {[%clk 0:00:05.9]} 38. Bg8 {[%clk 0:01:09.8]} 38... h6
{[%clk 0:00:04.4]} 39. Kf3 {[%clk 0:01:09]} 39... Kf6 {[%clk 0:00:04.6]} 40. Bd5
{[%clk 0:01:06.9]} 40... g5 {[%clk 0:00:04.9]} 41. Bb7 {[%clk 0:01:06.2]} 41...
h5 {[%clk 0:00:05]} 42. Bc8 {[%clk 0:01:06.6]} 42... g4+ {[%clk 0:00:05.8]} 43.
hxg4 {[%clk 0:01:07.1]} 43... hxg4+ {[%clk 0:00:06.7]} 44. Ke3 {[%clk
0:01:07.7]} 44... Kg5 {[%clk 0:00:06.8]} 45. Bd7 {[%clk 0:01:07.3]} 45... Bc7
{[%clk 0:00:06.5]} 46. Bc8 {[%clk 0:01:06.9]} 46... Bb6+ {[%clk 0:00:07.4]} 47.
Kd3 {[%clk 0:01:06.4]} 47... f4 {[%clk 0:00:06.2]} 48. Ke4 {[%clk 0:01:06.2]}
48... f3 {[%clk 0:00:05.5]} 49. Bd7 {[%clk 0:01:05.6]} 49... Kh4 {[%clk
0:00:04.2]} 50. Bc8 {[%clk 0:01:05]} 50... Kg3 {[%clk 0:00:03.5]} 51. Bd7 {[%clk
0:01:02.2]} 51... f2 {[%clk 0:00:03.9]} 52. Bb5 {[%clk 0:01:02.4]} 52... Kg2
{[%clk 0:00:04.1]} 0-1

[Event "*** SCC Grand Prix: Titled Tuesday Blitz"]
[Site "Chess.com"]
[Date "2020.09.29"]
[Round "5"]
[White "vladislavkovalev"]
[Black "GHANDEEVAM2003"]
[Result "1-0"]
[WhiteElo "2839"]
[BlackElo "3006"]
[TimeControl "180+1"]
[EndTime "10:55:04 PDT"]
[Termination "vladislavkovalev won by resignation"]

1. e4 {[%clk 0:03:00.9]} 1... d6 {[%clk 0:02:53.1]} 2. d4 {[%clk 0:03:00.9]}
2... g6 {[%clk 0:02:52.8]} 3. Nc3 {[%clk 0:03:00.6]} 3... Bg7 {[%clk 0:02:53.2]}
4. Be3 {[%clk 0:03:01.3]} 4... e6 {[%clk 0:02:47.6]} 5. f4 {[%clk 0:03:01.5]}
5... a6 {[%clk 0:02:46.4]} 6. Nf3 {[%clk 0:03:02.2]} 6... b5 {[%clk 0:02:46.1]}
7. Bd3 {[%clk 0:03:01.5]} 7... Bb7 {[%clk 0:02:46.4]} 8. Ne2 {[%clk 0:02:51.4]}
8... Nd7 {[%clk 0:02:41.7]} 9. a4 {[%clk 0:02:50.4]} 9... b4 {[%clk 0:02:39.8]}
10. a5 {[%clk 0:02:50]} 10... Ngf6 {[%clk 0:02:32.4]} 11. Ng3 {[%clk 0:02:49.5]}
11... h5 {[%clk 0:02:32.5]} 12. e5 {[%clk 0:02:39.4]} 12... Nd5 {[%clk
0:02:10.7]} 13. Bd2 {[%clk 0:02:38.9]} 13... h4 {[%clk 0:01:57.7]} 14. Ne4
{[%clk 0:02:38]} 14... h3 {[%clk 0:01:58.1]} 15. g3 {[%clk 0:02:33.9]} 15... Qe7
{[%clk 0:01:50.3]} 16. Qe2 {[%clk 0:02:32.7]} 16... Kf8 {[%clk 0:01:43.2]} 17.
O-O {[%clk 0:02:29.9]} 17... Kg8 {[%clk 0:01:41.2]} 18. Rae1 {[%clk 0:02:26.7]}
18... Rh5 {[%clk 0:01:37.1]} 19. g4 {[%clk 0:02:20.9]} 19... Rh8 {[%clk
0:01:35]} 20. g5 {[%clk 0:02:16.1]} 20... Kf8 {[%clk 0:01:24.9]} 21. c4 {[%clk
0:02:12]} 21... bxc3 {[%clk 0:01:24.6]} 22. bxc3 {[%clk 0:02:12.9]} 22... dxe5
{[%clk 0:01:11.9]} 23. Nxe5 {[%clk 0:02:03.5]} 23... Qd8 {[%clk 0:00:56.9]} 24.
Rb1 {[%clk 0:01:54.2]} 24... Ra7 {[%clk 0:00:56.6]} 25. Nxd7+ {[%clk 0:01:47.9]}
25... Qxd7 {[%clk 0:00:57.5]} 26. Nc5 {[%clk 0:01:48.6]} 26... Qc6 {[%clk
0:00:55.1]} 27. Be4 {[%clk 0:01:47.2]} 27... Bc8 {[%clk 0:00:35.5]} 28. Qf2
{[%clk 0:01:47.3]} 28... Qd6 {[%clk 0:00:31.7]} 29. Rb8 {[%clk 0:01:44.5]} 29...
Ke7 {[%clk 0:00:31.7]} 30. c4 {[%clk 0:01:33.6]} 30... c6 {[%clk 0:00:27.7]} 31.
Rbb1 {[%clk 0:01:17.1]} 31... Nc7 {[%clk 0:00:25.4]} 32. Be3 {[%clk 0:01:15.4]}
32... Na8 {[%clk 0:00:24.9]} 33. Rfd1 {[%clk 0:01:03.1]} 33... Rd8 {[%clk
0:00:23.8]} 34. Nd3 {[%clk 0:00:56.4]} 34... Qxd4 {[%clk 0:00:19.1]} 35. Bxd4
{[%clk 0:00:49.7]} 35... Bxd4 {[%clk 0:00:20]} 36. Ne5 {[%clk 0:00:50.4]} 36...
Bxf2+ {[%clk 0:00:19.7]} 37. Kxf2 {[%clk 0:00:51.3]} 37... Rxd1 {[%clk
0:00:19.8]} 38. Nxc6+ {[%clk 0:00:34.6]} 38... Kf8 {[%clk 0:00:19.9]} 39. Rxd1
{[%clk 0:00:35.3]} 39... Rc7 {[%clk 0:00:19.7]} 40. Rd8+ {[%clk 0:00:28.2]}
40... Kg7 {[%clk 0:00:19.9]} 41. Ne5 {[%clk 0:00:28.9]} 41... Bb7 {[%clk
0:00:18.9]} 42. Bxb7 {[%clk 0:00:28.7]} 42... Rxb7 {[%clk 0:00:19.5]} 43. Rxa8
{[%clk 0:00:29.3]} 43... Rb2+ {[%clk 0:00:19.9]} 44. Kg3 {[%clk 0:00:29.8]}
44... Rb3+ {[%clk 0:00:20.5]} 45. Kg4 {[%clk 0:00:30.3]} 1-0

[Event "*** SCC Grand Prix: Titled Tuesday Blitz"]
[Site "Chess.com"]
[Date "2020.09.29"]
[Round "5"]
[White "FontVella8"]
[Black "K_A_S_T_O_R"]
[Result "0-1"]
[WhiteElo "2484"]
[BlackElo "2714"]
[TimeControl "180+1"]
[EndTime "10:55:04 PDT"]
[Termination "K_A_S_T_O_R won on time"]

1. e4 {[%clk 0:03:00.5]} 1... c5 {[%clk 0:02:59.4]} 2. Nf3 {[%clk 0:03:00.3]}
2... d6 {[%clk 0:02:58.7]} 3. d4 {[%clk 0:03:00.6]} 3... cxd4 {[%clk 0:02:58.6]}
4. Qxd4 {[%clk 0:03:01.5]} 4... Nc6 {[%clk 0:02:57.8]} 5. Qe3 {[%clk 0:03:01.7]}
5... g6 {[%clk 0:02:53.7]} 6. Be2 {[%clk 0:03:01.6]} 6... Nf6 {[%clk 0:02:44.6]}
7. O-O {[%clk 0:03:01]} 7... Bg4 {[%clk 0:02:34.4]} 8. Rd1 {[%clk 0:03:00.1]}
8... Bxf3 {[%clk 0:02:22.5]} 9. Bxf3 {[%clk 0:02:59.9]} 9... Bg7 {[%clk
0:02:20.9]} 10. c4 {[%clk 0:02:58.4]} 10... Nd7 {[%clk 0:02:20.6]} 11. Nc3
{[%clk 0:02:57.7]} 11... O-O {[%clk 0:02:20.5]} 12. b3 {[%clk 0:02:57.8]} 12...
Qa5 {[%clk 0:02:17.1]} 13. Bb2 {[%clk 0:02:57.6]} 13... Rac8 {[%clk 0:02:10.9]}
14. Rd2 {[%clk 0:02:56.2]} 14... a6 {[%clk 0:02:05.2]} 15. Rad1 {[%clk
0:02:55.9]} 15... Rfe8 {[%clk 0:02:02.4]} 16. Bg4 {[%clk 0:02:54]} 16... Nce5
{[%clk 0:01:52.1]} 17. Bh3 {[%clk 0:02:51.4]} 17... Rcd8 {[%clk 0:01:51.5]} 18.
Rd5 {[%clk 0:02:27.9]} 18... Qb6 {[%clk 0:01:41.5]} 19. Qe2 {[%clk 0:02:09.1]}
19... Nc5 {[%clk 0:01:37.2]} 20. Ba3 {[%clk 0:01:54.8]} 20... Nc6 {[%clk
0:01:31.7]} 21. Bxc5 {[%clk 0:01:43.2]} 21... dxc5 {[%clk 0:01:30.5]} 22. Na4
{[%clk 0:01:42.5]} 22... Qb4 {[%clk 0:01:28.1]} 23. Bd7 {[%clk 0:01:09.8]} 23...
Nd4 {[%clk 0:01:07.2]} 24. R1xd4 {[%clk 0:00:48.3]} 24... Bxd4 {[%clk
0:01:05.7]} 25. Bxe8 {[%clk 0:00:48.7]} 25... Rxe8 {[%clk 0:01:05.9]} 26. e5
{[%clk 0:00:33.5]} 26... b5 {[%clk 0:01:03.1]} 27. Nb6 {[%clk 0:00:33.1]} 27...
Qc3 {[%clk 0:00:57.6]} 28. cxb5 {[%clk 0:00:19.4]} 28... axb5 {[%clk 0:00:54.8]}
29. e6 {[%clk 0:00:08.1]} 29... Qa1+ {[%clk 0:00:44]} 30. Qf1 {[%clk 0:00:08.1]}
30... Qxa2 {[%clk 0:00:44.6]} 31. exf7+ {[%clk 0:00:07.6]} 31... Kxf7 {[%clk
0:00:44.8]} 32. h4 {[%clk 0:00:04.5]} 32... Rb8 {[%clk 0:00:43.4]} 33. Nd7
{[%clk 0:00:02.6]} 33... Rc8 {[%clk 0:00:42.9]} 34. Rxd4 {[%clk 0:00:02]} 34...
cxd4 {[%clk 0:00:40]} 35. Ne5+ {[%clk 0:00:02.9]} 35... Kg7 {[%clk 0:00:39.1]}
36. Qxb5 {[%clk 0:00:02.3]} 36... Qb1+ {[%clk 0:00:37.6]} 37. Kh2 {[%clk
0:00:02.3]} 37... Qe4 {[%clk 0:00:35.3]} 0-1

[Event "*** SCC Grand Prix: Titled Tuesday Blitz"]
[Site "Chess.com"]
[Date "2020.09.29"]
[Round "5"]
[White "Eliwood44"]
[Black "anon569"]
[Result "0-1"]
[WhiteElo "2412"]
[BlackElo "2258"]
[TimeControl "180+1"]
[EndTime "10:55:05 PDT"]
[Termination "anon569 won by checkmate"]

1. d4 {[%clk 0:03:00.9]} 1... Nf6 {[%clk 0:02:54.7]} 2. Nf3 {[%clk 0:02:55.8]}
2... e6 {[%clk 0:02:53.6]} 3. g3 {[%clk 0:02:45]} 3... b5 {[%clk 0:02:52]} 4.
Bg2 {[%clk 0:02:34.7]} 4... Bb7 {[%clk 0:02:50.3]} 5. O-O {[%clk 0:02:35.3]}
5... Be7 {[%clk 0:02:46.3]} 6. a4 {[%clk 0:02:35.8]} 6... a6 {[%clk 0:02:44.3]}
7. Qd3 {[%clk 0:02:32.5]} 7... b4 {[%clk 0:02:19.5]} 8. c4 {[%clk 0:02:22.3]}
8... d6 {[%clk 0:02:15.9]} 9. Nbd2 {[%clk 0:02:12.7]} 9... Nbd7 {[%clk
0:02:11.1]} 10. e4 {[%clk 0:02:10.5]} 10... e5 {[%clk 0:02:10.5]} 11. Nh4 {[%clk
0:02:08.1]} 11... O-O {[%clk 0:01:09.4]} 12. Nf5 {[%clk 0:02:03]} 12... exd4
{[%clk 0:01:09.2]} 13. Nb3 {[%clk 0:01:58.1]} 13... Nc5 {[%clk 0:01:05.3]} 14.
Nxc5 {[%clk 0:01:53.5]} 14... dxc5 {[%clk 0:01:05]} 15. e5 {[%clk 0:01:53.9]}
15... Bxg2 {[%clk 0:01:01.4]} 16. exf6 {[%clk 0:01:54]} 16... Bxf1 {[%clk
0:01:00.9]} 17. Nxe7+ {[%clk 0:01:50.8]} 17... Qxe7 {[%clk 0:00:56.1]} 18. fxe7
{[%clk 0:01:49.6]} 18... Bxd3 {[%clk 0:00:56.1]} 19. exf8=Q+ {[%clk 0:01:50]}
19... Kxf8 {[%clk 0:00:56.4]} 20. Bf4 {[%clk 0:01:50.2]} 20... Rc8 {[%clk
0:00:47.8]} 21. b3 {[%clk 0:01:39]} 21... Bc2 {[%clk 0:00:43.5]} 22. a5 {[%clk
0:01:31]} 22... Bxb3 {[%clk 0:00:42.3]} 23. Rc1 {[%clk 0:01:31.6]} 23... Ke7
{[%clk 0:00:41.3]} 24. Kf1 {[%clk 0:01:31.1]} 24... Kd7 {[%clk 0:00:34.4]} 25.
Ke2 {[%clk 0:01:30.3]} 25... Re8+ {[%clk 0:00:32.7]} 26. Kd3 {[%clk 0:01:30.5]}
26... Ba4 {[%clk 0:00:33]} 27. h4 {[%clk 0:01:25.6]} 27... Bc6 {[%clk 0:00:32]}
28. h5 {[%clk 0:01:25.1]} 28... Be4+ {[%clk 0:00:29.4]} 29. Kd2 {[%clk 0:01:25]}
29... Bf3 {[%clk 0:00:29.6]} 30. Re1 {[%clk 0:01:22.9]} 30... b3 {[%clk
0:00:14.7]} 31. Rxe8 {[%clk 0:01:20.3]} 31... Kxe8 {[%clk 0:00:14.9]} 32. Bxc7
{[%clk 0:01:20.5]} 32... Kd7 {[%clk 0:00:12.8]} 33. Be5 {[%clk 0:01:15.8]} 33...
g6 {[%clk 0:00:11.9]} 34. hxg6 {[%clk 0:01:15.2]} 34... hxg6 {[%clk 0:00:12.8]}
35. Bg7 {[%clk 0:01:11.2]} 35... Be2 {[%clk 0:00:12.1]} 36. Bf8 {[%clk
0:01:02.8]} 36... Kc6 {[%clk 0:00:11.3]} 37. Be7 {[%clk 0:01:02.2]} 37... Bxc4
{[%clk 0:00:11.4]} 38. f4 {[%clk 0:01:00.9]} 38... Kb5 {[%clk 0:00:11.1]} 39.
Bd8 {[%clk 0:01:00.5]} 39... Bd5 {[%clk 0:00:11]} 40. g4 {[%clk 0:00:57.1]}
40... Be4 {[%clk 0:00:10.7]} 41. Kc1 {[%clk 0:00:55.2]} 41... c4 {[%clk
0:00:10.9]} 42. Bf6 {[%clk 0:00:55.6]} 42... Kc5 {[%clk 0:00:10.4]} 43. g5
{[%clk 0:00:54.6]} 43... c3 {[%clk 0:00:10.4]} 44. f5 {[%clk 0:00:52.3]} 44...
b2+ {[%clk 0:00:10.1]} 45. Kd1 {[%clk 0:00:52.6]} 45... b1=Q+ {[%clk 0:00:10.3]}
46. Ke2 {[%clk 0:00:53.5]} 46... Qc2+ {[%clk 0:00:10.6]} 47. Ke1 {[%clk
0:00:52.7]} 47... Bf3 {[%clk 0:00:10.6]} 48. Bxd4+ {[%clk 0:00:52.3]} 48... Kxd4
{[%clk 0:00:10.2]} 49. f6 {[%clk 0:00:53.2]} 49... Qe2# {[%clk 0:00:10.2]} 0-1

[Event "*** SCC Grand Prix: Titled Tuesday Blitz"]
[Site "Chess.com"]
[Date "2020.09.29"]
[Round "5"]
[White "pastouche06"]
[Black "Chessmatus"]
[Result "1-0"]
[WhiteElo "2494"]
[BlackElo "2330"]
[TimeControl "180+1"]
[EndTime "10:55:06 PDT"]
[Termination "pastouche06 won by resignation"]

1. d4 {[%clk 0:03:00.9]} 1... Nf6 {[%clk 0:02:56.7]} 2. c4 {[%clk 0:03:00.3]}
2... g6 {[%clk 0:02:56.9]} 3. f3 {[%clk 0:02:59.6]} 3... d5 {[%clk 0:02:56.5]}
4. cxd5 {[%clk 0:02:58.7]} 4... Nxd5 {[%clk 0:02:57.4]} 5. e4 {[%clk 0:02:59.2]}
5... Nb6 {[%clk 0:02:58]} 6. Nc3 {[%clk 0:02:59.6]} 6... Bg7 {[%clk 0:02:58.1]}
7. Be3 {[%clk 0:03:00.1]} 7... O-O {[%clk 0:02:56.8]} 8. Qd2 {[%clk 0:02:59.9]}
8... Nc6 {[%clk 0:02:56.9]} 9. O-O-O {[%clk 0:02:59.2]} 9... Qd6 {[%clk
0:02:57.4]} 10. Kb1 {[%clk 0:02:54.4]} 10... Rd8 {[%clk 0:02:55.9]} 11. Nb5
{[%clk 0:02:54.4]} 11... Qd7 {[%clk 0:02:55.7]} 12. d5 {[%clk 0:02:54.5]} 12...
a6 {[%clk 0:02:52.2]} 13. Nc3 {[%clk 0:02:54.4]} 13... Na5 {[%clk 0:02:36.4]}
14. Bh6 {[%clk 0:02:48]} 14... Bh8 {[%clk 0:02:32.4]} 15. h4 {[%clk 0:02:27.3]}
15... Nbc4 {[%clk 0:02:17.6]} 16. Qc1 {[%clk 0:02:25]} 16... c6 {[%clk
0:01:49.3]} 17. dxc6 {[%clk 0:02:11.2]} 17... Qe8 {[%clk 0:01:49.4]} 18. Rxd8
{[%clk 0:01:37.8]} 18... Qxd8 {[%clk 0:01:50.3]} 19. c7 {[%clk 0:01:33.2]} 19...
Qxc7 {[%clk 0:01:36.1]} 20. Nd5 {[%clk 0:01:26.9]} 20... Qe5 {[%clk 0:01:06.2]}
21. Qc3 {[%clk 0:00:55.8]} 21... f5 {[%clk 0:00:33.1]} 22. Bxc4 {[%clk
0:00:35.2]} 22... Nxc4 {[%clk 0:00:30.9]} 23. Nxe7+ {[%clk 0:00:20.9]} 23...
Qxe7 {[%clk 0:00:30.7]} 24. Qxc4+ {[%clk 0:00:21.5]} 24... Be6 {[%clk
0:00:31.2]} 25. Qe2 {[%clk 0:00:19.4]} 25... Rd8 {[%clk 0:00:15.8]} 26. Nh3
{[%clk 0:00:19.4]} 26... Qb4 {[%clk 0:00:14.7]} 27. Rc1 {[%clk 0:00:12.6]} 27...
Qa4 {[%clk 0:00:13.6]} 28. b3 {[%clk 0:00:03.8]} 28... Bxb3 {[%clk 0:00:13.6]}
29. exf5 {[%clk 0:00:04.3]} 29... Bxa2+ {[%clk 0:00:13.7]} 30. Qxa2+ {[%clk
0:00:03.9]} 30... Qxa2+ {[%clk 0:00:12.8]} 31. Kxa2 {[%clk 0:00:04.2]} 31...
gxf5 {[%clk 0:00:12.3]} 32. Rc7 {[%clk 0:00:03.9]} 1-0

[Event "*** SCC Grand Prix: Titled Tuesday Blitz"]
[Site "Chess.com"]
[Date "2020.09.29"]
[Round "5"]
[White "OsorioFernando"]
[Black "banane_verte"]
[Result "1-0"]
[WhiteElo "2309"]
[BlackElo "2463"]
[TimeControl "180+1"]
[EndTime "10:55:06 PDT"]
[Termination "OsorioFernando won by checkmate"]

1. e4 {[%clk 0:03:00]} 1... e6 {[%clk 0:02:58.6]} 2. d4 {[%clk 0:02:59.2]} 2...
d5 {[%clk 0:02:59.5]} 3. Bd3 {[%clk 0:02:59.6]} 3... dxe4 {[%clk 0:02:35.7]} 4.
Bxe4 {[%clk 0:02:59.3]} 4... Nf6 {[%clk 0:02:36.6]} 5. Bg5 {[%clk 0:02:52.7]}
5... c5 {[%clk 0:02:37.5]} 6. Nf3 {[%clk 0:02:37.4]} 6... Be7 {[%clk 0:02:35.8]}
7. Bxf6 {[%clk 0:02:31.9]} 7... Bxf6 {[%clk 0:02:36.7]} 8. c3 {[%clk 0:02:27.2]}
8... O-O {[%clk 0:02:34.6]} 9. O-O {[%clk 0:02:21.6]} 9... cxd4 {[%clk
0:02:34.3]} 10. Nxd4 {[%clk 0:02:16]} 10... Bxd4 {[%clk 0:02:33.2]} 11. cxd4
{[%clk 0:02:09.8]} 11... Nc6 {[%clk 0:02:33.2]} 12. d5 {[%clk 0:02:07]} 12...
exd5 {[%clk 0:02:30.1]} 13. Qxd5 {[%clk 0:01:59.7]} 13... Qxd5 {[%clk
0:02:29.4]} 14. Bxd5 {[%clk 0:02:00.6]} 14... Nb4 {[%clk 0:02:28.1]} 15. Bb3
{[%clk 0:01:59]} 15... Bf5 {[%clk 0:02:25.1]} 16. Nc3 {[%clk 0:01:51.1]} 16...
Rad8 {[%clk 0:02:22.8]} 17. Rad1 {[%clk 0:01:49]} 17... Nd3 {[%clk 0:02:19.9]}
18. Rd2 {[%clk 0:01:46.4]} 18... Nc5 {[%clk 0:02:17.7]} 19. Rxd8 {[%clk
0:01:31.6]} 19... Rxd8 {[%clk 0:02:17.3]} 20. Rd1 {[%clk 0:01:30.6]} 20... Rxd1+
{[%clk 0:02:16.4]} 21. Bxd1 {[%clk 0:01:28.6]} 21... Kf8 {[%clk 0:02:16.8]} 22.
Kf1 {[%clk 0:01:25.7]} 22... Ke7 {[%clk 0:02:17]} 23. Ke2 {[%clk 0:01:22.6]}
23... a6 {[%clk 0:02:15.2]} 24. f3 {[%clk 0:01:19.7]} 24... Kd6 {[%clk
0:02:14.5]} 25. Ke3 {[%clk 0:01:17]} 25... Ke5 {[%clk 0:02:12.3]} 26. Be2 {[%clk
0:01:12.4]} 26... g5 {[%clk 0:02:08.4]} 27. g3 {[%clk 0:01:08.8]} 27... b5
{[%clk 0:02:01.3]} 28. b4 {[%clk 0:01:06.5]} 28... Nd7 {[%clk 0:01:57.3]} 29. a4
{[%clk 0:01:02.5]} 29... bxa4 {[%clk 0:01:52.1]} 30. Nxa4 {[%clk 0:01:02.5]}
30... Nf6 {[%clk 0:01:52.5]} 31. Nb6 {[%clk 0:00:55.4]} 31... Kd6 {[%clk
0:01:43.6]} 32. Kd4 {[%clk 0:00:35.6]} 32... Kc6 {[%clk 0:01:22.8]} 33. Ke5
{[%clk 0:00:26.6]} 33... Bg6 {[%clk 0:01:18.5]} 34. Kxf6 {[%clk 0:00:24.8]}
34... Kxb6 {[%clk 0:01:18.7]} 35. Kxg5 {[%clk 0:00:25.2]} 35... f5 {[%clk
0:01:01.3]} 36. Kf6 {[%clk 0:00:23]} 36... a5 {[%clk 0:00:58.6]} 37. bxa5+
{[%clk 0:00:18.5]} 37... Kxa5 {[%clk 0:00:59.5]} 38. Bd3 {[%clk 0:00:18.4]}
38... Kb6 {[%clk 0:00:53.7]} 39. Bxf5 {[%clk 0:00:17.3]} 39... Bh5 {[%clk
0:00:54.6]} 40. g4 {[%clk 0:00:17.1]} 40... Be8 {[%clk 0:00:54.1]} 41. Bxh7
{[%clk 0:00:17.4]} 41... Kc7 {[%clk 0:00:55]} 42. h4 {[%clk 0:00:17.1]} 42...
Kd6 {[%clk 0:00:55.6]} 43. h5 {[%clk 0:00:17.1]} 43... Bb5 {[%clk 0:00:55.3]}
44. f4 {[%clk 0:00:16.8]} 44... Be2 {[%clk 0:00:55.5]} 45. Bf5 {[%clk
0:00:16.2]} 45... Bd1 {[%clk 0:00:53.4]} 46. h6 {[%clk 0:00:15.1]} 46... Bxg4
{[%clk 0:00:53.6]} 47. Bxg4 {[%clk 0:00:14.8]} 47... Kd5 {[%clk 0:00:52.7]} 48.
h7 {[%clk 0:00:15.7]} 48... Ke4 {[%clk 0:00:53.6]} 49. h8=Q {[%clk 0:00:15.4]}
49... Kxf4 {[%clk 0:00:54.5]} 50. Qg7 {[%clk 0:00:14.9]} 50... Kg3 {[%clk
0:00:55.4]} 51. Bc8+ {[%clk 0:00:15.2]} 51... Kh4 {[%clk 0:00:56.3]} 52. Qg5#
{[%clk 0:00:15.7]} 1-0

[Event "*** SCC Grand Prix: Titled Tuesday Blitz"]
[Site "Chess.com"]
[Date "2020.09.29"]
[Round "5"]
[White "lacafi"]
[Black "ajdemipopushi"]
[Result "0-1"]
[WhiteElo "2105"]
[BlackElo "2336"]
[TimeControl "180+1"]
[EndTime "10:55:06 PDT"]
[Termination "ajdemipopushi won on time"]

1. d4 {[%clk 0:03:00.9]} 1... Nf6 {[%clk 0:02:59.2]} 2. Nf3 {[%clk 0:03:00]}
2... c5 {[%clk 0:02:59.3]} 3. e3 {[%clk 0:03:00.2]} 3... b6 {[%clk 0:02:58.1]}
4. Bd3 {[%clk 0:03:00]} 4... g6 {[%clk 0:02:58.2]} 5. O-O {[%clk 0:02:59.1]}
5... Bg7 {[%clk 0:02:58.1]} 6. b3 {[%clk 0:02:59.4]} 6... Bb7 {[%clk 0:02:57.8]}
7. Bb2 {[%clk 0:02:58.9]} 7... O-O {[%clk 0:02:57.2]} 8. c4 {[%clk 0:02:58.8]}
8... cxd4 {[%clk 0:02:55.1]} 9. exd4 {[%clk 0:02:58.2]} 9... d5 {[%clk 0:02:55]}
10. Nbd2 {[%clk 0:02:52.7]} 10... Nc6 {[%clk 0:02:36.5]} 11. Re1 {[%clk
0:02:49.2]} 11... e6 {[%clk 0:02:30]} 12. a3 {[%clk 0:02:40.8]} 12... Rc8 {[%clk
0:02:26.1]} 13. Bf1 {[%clk 0:02:22.1]} 13... dxc4 {[%clk 0:02:15.4]} 14. bxc4
{[%clk 0:02:23]} 14... Na5 {[%clk 0:02:15.6]} 15. Rc1 {[%clk 0:02:21.8]} 15...
Qc7 {[%clk 0:02:07.5]} 16. h3 {[%clk 0:02:13.4]} 16... Rfd8 {[%clk 0:02:06.8]}
17. Qe2 {[%clk 0:02:02.2]} 17... Nh5 {[%clk 0:01:56.9]} 18. g3 {[%clk
0:01:50.2]} 18... Qb8 {[%clk 0:01:19.9]} 19. Rc2 {[%clk 0:01:17.5]} 19... Nf6
{[%clk 0:01:16.4]} 20. Ne5 {[%clk 0:01:13.8]} 20... Rc7 {[%clk 0:01:10.8]} 21.
Qe3 {[%clk 0:00:51.6]} 21... Nc6 {[%clk 0:00:55.7]} 22. Nxc6 {[%clk 0:00:44.8]}
22... Bxc6 {[%clk 0:00:53.1]} 23. Nf3 {[%clk 0:00:42.4]} 23... Ne8 {[%clk
0:00:42.7]} 24. Ne5 {[%clk 0:00:30.2]} 24... Ba8 {[%clk 0:00:42.4]} 25. Bg2
{[%clk 0:00:23.3]} 25... Bxg2 {[%clk 0:00:41.1]} 26. Kxg2 {[%clk 0:00:24.2]}
26... Nd6 {[%clk 0:00:41.6]} 27. Rec1 {[%clk 0:00:21]} 27... Nf5 {[%clk
0:00:40.4]} 28. Qf4 {[%clk 0:00:20.3]} 28... Qb7+ {[%clk 0:00:33]} 29. Kg1
{[%clk 0:00:19.8]} 29... h5 {[%clk 0:00:27.7]} 30. a4 {[%clk 0:00:18.5]} 30...
Qa6 {[%clk 0:00:26]} 31. g4 {[%clk 0:00:17.4]} 31... hxg4 {[%clk 0:00:25.6]} 32.
hxg4 {[%clk 0:00:17.3]} 32... Nh6 {[%clk 0:00:26.2]} 33. Qf3 {[%clk 0:00:10.6]}
33... Qxa4 {[%clk 0:00:23.7]} 34. Nc6 {[%clk 0:00:10.5]} 34... Qxc6 {[%clk
0:00:23.2]} 0-1